Cogmind - Beta 11.1 *** ADVENTURER MODE // 2022.06.24 @ 20:29:17 Player: ssjs Result: Smashed by cave-in Performance ------------- Evolutions (1) 500 Regions Visited (3) 600 Robots Destroyed (27) 135 Value Destroyed (765) 765 Prototype IDs (2) 40 Alien Tech Used (0) 0 Bonus (33) 33 TOTAL SCORE: 2073 Bonus ------- High Alert Combat Kills 33 Cogmind --------- Core Integrity 0/400 Matter 132/300 Energy 100/100 System Corruption 0% Temperature Cool (0) Movement Treading (160) Location -9/Storage Parts ------- > --- POWER (2) -------- (None) > --- PROPULSION (2) --- Light Treads Light Treads > --- UTILITY (3) ------ Small Storage Unit Medium Armor Plating > --- WEAPON (2) ------- Assault Rifle Rocket Launcher > --- INVENTORY (8) ---- Hover Unit Cesium-ion Thruster High-capacity Storage Unit Beam Rifle Assault Rifle Mini Grenade Launcher Peak State ------------ > --- POWER ------------ Ion Engine Light Ion Engine > --- PROPULSION ------- Light Treads Light Treads > --- UTILITY ---------- Small Storage Unit Medium Matter Pod Improved Light Armor Plating > --- WEAPON ----------- EM Pulse Gun Assault Rifle > --- INVENTORY -------- Compact Wheel Hover Unit Cesium-ion Thruster High-capacity Storage Unit Medium Laser Assault Rifle Mini Grenade Launcher Mining Laser [Rating: 12] Favorites ----------- Power Ion Engine Engine Ion Engine Propulsion Light Treads Treads Light Treads Hover Unit Hover Unit Flight Unit Cesium-ion Thruster Utility Small Storage Unit Storage Small Storage Unit Protection Medium Armor Plating Weapon EM Pulse Gun Energy Gun EM Pulse Gun Ballistic Gun Assault Rifle Launcher Rocket Launcher Special Weapon Mining Laser Build | -11 -10 -9 -9 ------- Run | Scr Mat Mat Sto Slots Evolved 2 | . . 2 . Power 1 | . . 1 . Propulsion . | . . . . Utility 1 | . . 1 . Weapon . | . . . . Parts Attached 22 | 7 1 4 10 Power 4 | 2 . 1 1 Engine 4 | 2 . 1 1 Core . | . . . . Reactor . | . . . . Propulsion 6 | 2 . . 4 Treads 4 | 2 . . 2 Leg . | . . . . Wheel . | . . . . Hover 1 | . . . 1 Flight 1 | . . . 1 Utility 5 | 1 1 2 1 Device . | . . . . Storage 2 | 1 1 . . Processor . | . . . . Hackware . | . . . . Protection 3 | . . 2 1 Artifact . | . . . . Weapon 7 | 2 . 1 4 Energy Gun 2 | 1 . 1 . Energy Cannon . | . . . . Ballistic Gun 2 | 1 . . 1 Ballistic Cannon . | . . . . Launcher 2 | . . . 2 Special Weapon 1 | . . . 1 Impact Weapon . | . . . . Slashing Weapon . | . . . . Piercing Weapon . | . . . . Special Melee Weapon . | . . . . Unidentified Prototypes . | . . . . Parts Lost 10 | . . . 10 Power 3 | . . . 3 Propulsion 2 | . . . 2 Utility 2 | . . . 2 Weapon 3 | . . . 3 Highest Loss Streak 7 | . . . 7 To Critical Strikes . | . . . . Average Slot Usage (%) 85 | . 94 98 73 Engine 14 | . 14 22 11 Treads 22 | . 28 22 17 Storage 19 | . 22 22 15 Protection 4 | . . 10 6 Energy Gun 11 | . 14 16 7 Ballistic Gun 6 | . 14 5 . Launcher 3 | . . . 7 Special Weapon 1 | . . . 4 Naked Turns . | . . . . Heaviest Build 26 | 14 16 26 26 Greatest Support 40 | 40 40 40 40 Greatest Overweight (x) 4 | . . . 4 Average Overweight (x) . | . . . . Largest Inventory Capacity 8 | 8 8 8 8 Average Capacity 7 | 7 8 8 8 Most Carried 8 | 5 7 8 8 Average Carried 6 | 3 5 7 6 Final Capacity 8 | 8 8 8 8 Final Carried 8 | 4 7 8 6 Class Distribution -------------------- 100% | Mutant Dominant Class ---------------- Mutant | -10/Materials Mutant | -9/Materials Mutant | -9/Storage Resources | -11 -10 -9 -9 ----------- Run | Scr Mat Mat Sto Matter Collected 573 | 210 118 143 102 Remotely . | . . . . Salvage Created 727 | . 118 193 416 Parts 46 | . 10 12 24 Haulers Intercepted 2 | . . . 2 Recyclers Shooed 1 | . . . 1 Parts Field Recycled . | . . . . Retrieved Matter . | . . . . Parts Self-Destructed . | . . . . Prevented . | . . . . Kills | -11 -10 -9 -9 ------- Run | Scr Mat Mat Sto Combat Hostiles Destroyed 17 | . 2 3 12 Guns 5 | . 2 3 . AOE 12 | . . . 12 Classes Destroyed 7 | . 2 2 3 Worker 3 | . . 1 2 Builder 3 | . . . 3 Hauler 2 | . . . 2 Recycler 1 | . . . 1 Watcher 1 | . 1 . . Grunt 7 | . 2 1 4 Sentry 10 | . . 2 8 Best Kill Streak 13 | . 3 2 13 Combat Bots Only 9 | . 2 2 9 Max Kills in Single Turn 3 | . 1 1 3 Gunslinging . | . . . . Exploded 2 | . . . 2 Melee . | . . . . Uniques/NPCs Destroyed . | . . . . Combat | -11 -10 -9 -9 -------- Run | Scr Mat Mat Sto Damage Taken 1541 | . 164 186 1191 Core 442 | . . 18 424 Absorbed by Shields . | . . . . Core Remaining (%) 100 | 100 100 . . Volleys Fired 62 | . 13 14 35 Largest 2 | . 2 2 2 Hottest 90 | . 60 90 90 Shots Fired 97 | . 26 28 43 Gun 67 | . 26 28 13 Cannon . | . . . . Launcher 30 | . . . 30 Special . | . . . . Kinetic 18 | . 13 5 . Thermal 17 | . . 9 8 Explosive 30 | . . . 30 Electromagnetic 32 | . 13 14 5 Robot Hit Streak 24 | . 15 21 24 Robot Miss Streak 3 | . 3 1 3 Penetration Max . | . . . . Secondary Targets 2 | . 1 1 . Max Gunslinging Chain 1 | . 1 1 . Shots Hit Robots 74 | . 20 25 29 Core Hits 59 | . 7 7 45 Critical Kills . | . . . . Critical Parts Destroyed . | . . . . Critical Strikes . | . . . . Melee Attacks . | . . . . Impact . | . . . . Slashing . | . . . . Piercing . | . . . . Sneak Attacks . | . . . . Combat Hostiles . | . . . . Follow-up Attacks . | . . . . Damage Inflicted 2226 | . 253 294 1679 Guns 588 | . 253 286 49 Cannons . | . . . . Explosions 1630 | . . . 1630 Melee . | . . . . Ramming 8 | . . 8 . Kinetic 160 | . 115 45 . Thermal 136 | . . 87 49 Explosive 1630 | . . . 1630 Electromagnetic 292 | . 138 154 . Impact . | . . . . Slashing . | . . . . Piercing . | . . . . Highest Corruption . | . . . . Average Corruption . | . . . . Corruption Purged . | . . . . Corruption Blocked . | . . . . Overload Shots . | . . . . Overflow Damage 8 | . . . 8 Projectiles . | . . . . Explosions 8 | . . . 8 Melee . | . . . . Knockbacks . | . . . . Impact . | . . . . Kinetic . | . . . . Secondary . | . . . . Self-Inflicted Damage 176 | . . . 176 Shots 14 | . . . 14 Rammed 1 | . . 1 . Targets Rammed 1 | . . 1 . Kicked . | . . . . Crushed . | . . . . Highest Temperature 327 | . 117 327 193 Average Temperature 88 | . 64 118 65 Received Heat Transfer 648 | . 117 108 423 Siege Activations . | . . . . Robots Corrupted . | . . . . Combat Hostiles . | . . . . Parts Fried 1 | . . 1 . Impact Corruptions . | . . . . Robots Melted . | . . . . Combat Hostiles . | . . . . Parts Melted . | . . . . Heat Transferred 407 | . . 259 148 Parts Sabotaged . | . . . . Parts Stolen . | . . . . Parts Stripped . | . . . . Power Chain Reactions . | . . . . Missiles Intercepted . | . . . . Alert | -11 -10 -9 -9 ------- Run | Scr Mat Mat Sto Peak Influence 587 | . 75 155 587 Initial 55 | . . 27 55 Average 129 | . 22 73 301 Maximum Alert Level 2 | . . . 2 Low Security (%) 77 | 100 100 100 37 Level 1 7 | . . . 19 Level 2 15 | . . . 42 Level 3 . | . . . . Level 4 . | . . . . Level 5 . | . . . . High Security . | . . . . Max Security . | . . . . Squads Dispatched 6 | . . 1 5 Investigation . | . . . . Extermination . | . . . . Reinforcement 3 | . . 1 2 Assault . | . . . . Garrison 3 | . . . 3 Intercept . | . . . . Searches Triggered . | . . . . Construction Impeded 1 | . . . 1 Haulers Reinforced . | . . . . Active Scanning Responses . | . . . . Cargo Convoy Interrupts . | . . . . Stealth | -11 -10 -9 -9 --------- Run | Scr Mat Mat Sto Distress Signals 4 | . 1 2 1 Communications Jammed . | . . . . Distress Signals . | . . . . Times Spotted 27 | . 3 8 16 Peak Tracking Total 6 | . 3 5 6 Tactical Retreats 1 | . . 1 . Traps | -11 -10 -9 -9 ------- Run | Scr Mat Mat Sto Traps Triggered . | . . . . Indirectly . | . . . . Trap Hack Attempts . | . . . . Triggered . | . . . . Disarmed . | . . . . Reprogrammed . | . . . . Reused . | . . . . Traps Extracted . | . . . . Installed . | . . . . Triggered . | . . . . Machines | -11 -10 -9 -9 ---------- Run | Scr Mat Mat Sto Machines Disabled 2 | . . . 2 Max in Single Turn 1 | . . . 1 Machines Sabotaged . | . . . . Garrisons Compromised . | . . . . Overloaded Fab Kills . | . . . . Hacking | -11 -10 -9 -9 --------- Run | Scr Mat Mat Sto Machines Accessed 3 | . 2 . 1 Terminals 3 | . 2 . 1 Fabricators . | . . . . Repair Stations . | . . . . Recycling Units . | . . . . Scanalyzers . | . . . . Garrison Access . | . . . . Total Hacks 9 | . 6 . 3 Successful 5 | . 4 . 1 Failed 4 | . 2 . 2 Catastrophic . | . . . . Database Lockouts . | . . . . Manual . | . . . . Terminals 9 | . 6 . 3 Fabricators . | . . . . Repair Stations . | . . . . Recycling Units . | . . . . Scanalyzers . | . . . . Garrison Access . | . . . . Terminal Hacks 5 | . 4 . 1 Prototype ID Bank 1 | . 1 . . Locate Traps 2 | . 2 . . Surveillance Status 1 | . . . 1 Reinforcement Status 1 | . 1 . . Fabricator Hacks . | . . . . Repair Station Hacks . | . . . . Recycling Unit Hacks . | . . . . Scanalyzer . | . . . . Garrison Access Hacks . | . . . . Unauthorized Hacks . | . . . . Terminals . | . . . . Fabricators . | . . . . Repair Stations . | . . . . Recycling Units . | . . . . Scanalyzers . | . . . . Garrison Access . | . . . . Data Cores Recovered . | . . . . Used . | . . . . Hacking Detections 3 | . 2 . 1 Full Trace Events . | . . . . Feedback Events . | . . . . Feedback Blocked . | . . . . Robot Schematics Acquired . | . . . . Robots Built . | . . . . Authchips . | . . . . Time . | . . . . Total Robot Build Rating . | . . . . Part Schematics Acquired . | . . . . Parts Built . | . . . . Authchips . | . . . . Time . | . . . . Total Part Build Rating . | . . . . Parts Repaired . | . . . . Time . | . . . . Parts Recycled . | . . . . Recycled Matter . | . . . . Retrieved Matter . | . . . . Retrieved Components . | . . . . Parts Scanalyzed . | . . . . Part Schematics Acquired . | . . . . Parts Damaged . | . . . . Bothacking | -11 -10 -9 -9 ------------ Run | Scr Mat Mat Sto Used RIF Installer . | . . . . Robots Hacked . | . . . . Non-combat . | . . . . Combat . | . . . . Robot Hacks Applied . | . . . . Relay Couplers Released . | . . . . Fabnet Peak Effective % . | . . . . Robots Rewired . | . . . . Allies Hacked . | . . . . Hacks Repelled . | . . . . Allies | -11 -10 -9 -9 -------- Run | Scr Mat Mat Sto Total Allies . | . . . . Largest Group . | . . . . Highest-Rated Group . | . . . . Highest-Rated Ally . | . . . . Total Orders . | . . . . Ally Attacks . | . . . . Total Damage . | . . . . Kills . | . . . . Allies Corrupted . | . . . . Allies Melted . | . . . . Intel | -11 -10 -9 -9 ------- Run | Scr Mat Mat Sto Robot Analysis Total . | . . . . Derelict Logs Recovered . | . . . . Drone Launches . | . . . . Drone Recoveries . | . . . . Exploration | -11 -10 -9 -9 ------------- Run | Scr Mat Mat Sto Turns Passed 1228 | 205 352 223 448 Spaces Moved 634 | 124 193 105 212 Core 19 | 9 . . 10 Treads 614 | 115 193 105 201 Legs . | . . . . Wheels . | . . . . Hover . | . . . . Flight 1 | . . . 1 Fastest Speed 50 | 50 160 160 100 Average Speed 158 | 152 160 160 158 Slowest Speed 250 | 160 160 160 250 Overloaded Moves . | . . . . Propulsion Burnouts . | . . . . Robots Hopped . | . . . . Cave-ins Triggered 1 | . . . 1 Exploration Rate (%) 23 | 8 32 14 40 Regions Visited 3 Branch Regions 1 Pre-discovered Areas . | . . . . Known Exits Taken . | . . . . Unknown Exits Taken 3 | 1 1 1 . Scrap Searched . | . . . . Spaces Dug . | . . . . Terrain Destroyed 115 | . . . 115 Melee . | . . . . Projectile . | . . . . AOE 115 | . . . 115 Terrain Rammed . | . . . . Walls Destroyed . | . . . . Machines Disabled . | . . . . Actions | -11 -10 -9 -9 --------- Run | Scr Mat Mat Sto Total 764 | 140 210 132 282 Wait 18 | . . . 18 Move 631 | 123 192 104 212 Hop . | . . . . Pick Up 25 | 10 4 6 5 Fast Attach . | . . . . Attach 18 | 6 1 2 9 Detach 2 | . . . 2 Swap 4 | 1 . 2 1 Drop 3 | . . 3 . Fire 62 | . 13 14 35 Melee . | . . . . Ram . | . . . . Kick . | . . . . Crush 1 | . . 1 . Escape Stasis . | . . . . Rewire . | . . . . Trap . | . . . . Miscellaneous . | . . . . Route ------- -11/Scrapyard -10/Materials -9/Materials -9/Storage History --------- Turn | Location | Event 72 | -11/Scrapyard | Discovered new exit (range 15) 206 | -11/Scrapyard | Entered Materials 302 | -10/Materials | Build established: Mutant 550 | -10/Materials | Discovered new exit (range 5) 558 | -10/Materials | Entered another Materials area 558 | -9/Materials | Evolved 2 slots: Power x1, Utility x1 613 | -9/Materials | Discovered new exit (range 11) 781 | -9/Materials | Entered Storage 954 | -9/Storage | Core integrity fell below 50% 971 | -9/Storage | Lost 7 parts (2p2n1u2w) 977 | -9/Storage | Core integrity fell below 20% 1001 | -9/Storage | Destroyed 9 combat bots 1230 | -9/Storage | Crushed by falling debris 1230 | -9/Storage | Smashed by cave-in Last Messages --------------- A-02 Transporter destroyed. Compression Vault explodes. Y-45 Defender destroyed. K-01 Serf collects debris. Imp. Ion Engine destroyed. K-01 Serf collects debris. K-01 Serf destroyed. Y-45 Defender destroyed. Acquired 16 matter. The unstable cave ceiling collapses. Acquired 15 matter. Acquired 7 matter. The unstable cave ceiling collapses. U-05 Engineer lays Concrete. U-05 Engineer builds a Wall. U-05 Engineer lays Concrete. U-05 Engineer builds a Wall. The unstable cave ceiling collapses. Crushed by falling debris. [Achievement: Unlikely Earthworm] Map ----- +----------------------------------------------------+ | ?????????????????????? ""?????????????? | | ######???????????????? ?????????????? | | #####+############+#####?????????? | | ^ #?????????? | | ^^ #?????????? | | #?????????? | | ###############+### #?????????? | | # ####??????# # #?????????? | | # "" #??????#""" # #?????????? | | # G"#??????#""" # ######????? | | # "" #??????#""" # # ##???? | | # ##??????# #???? | | # ####??????#""" = ###??? | | # #??????#""" #??? | | # ???????#""" ##??? | | # #######?# == #??? | | # #?###"T"# # = #??? | | # # #???#"""## [ ! ##??? | | # """ #???###### ! ##???? | | # """ #????????# # | #????? | | # # """ #????????#### ## ####????? | | + ##############u #??????? | | # """ # = | #??????? | | # """ + !%! #??????? | | # """ # ! #??????? | | # # #####+###@ #??????? | | # # #????# ###??????? | | ####### #####????# # ##????????? | | ???????##????????# ####?????????? | | ?????????????????# #????????????? | | ?????????????????# #????????????? | | ?????????????????# #????????????? | | ?????????????????# #????????????? | | ?????????????????+ #????????????? | | ?????????????????# #????????????? | | ?????????????????# #????????????? | | ?????????????????# #????????????? | | ?????????????????#########????????????? | | ??????????????????????????????????????? | | ??????????????????????????????????????? | | ??????????????????????????????????????? | | ??????????????????????????????????????? | | ??????????????????????????????????????? | | ??????????????????????????????????????? | | ??????????????????????????????????????? | | ??????????????????????????????????????? | | ??????????????????????????????????????? | | ??????????????????????????????????????? | | ??????????????????????????????????????? | | ??????????????????????????????????????? | +----------------------------------------------------+ Best States ------------- Heat Dissipation 28 Energy Generation 15 Energy Capacity 275 Matter Stores 400 Matter Capacity 400 Sight Range 16 Terrain Scan Density 10 Armor Coverage 225 Resistance: KI 20 Resistance: TH 20 Resistance: EX 20 Resistance: EM 20 Resistance: I 20 Resistance: S 20 Resistance: P 20 Evasion (%) 40 Recoil Reduction 2 Offensive Hacking 10 Item Schematics ----------------- None Robot Schematics ------------------ None Fabricated ------------ Nothing Alien Tech Used ----------------- None Achievements -------------- Unlikely Earthworm Challenges ------------ None Game ------ Seed QuantumHoverRipper Manual? 0 Play Time 00:15:50 Cumulative 3.4 hours Start 2022.06.24 @ 20:11:13 End 2022.06.24 @ 20:29:17 Sessions 1 Manual Loads 0 Difficulty Adventurer Special Mode None Game No. 8 Rogue 6 Adventurer 2 Explorer 0 Win Type - Total 0 Types 0/0/0/0/0/0/0/0/0 Lore% 4 Gallery% 6 Achievement% 6 Wizard Run 0 Options --------- ASCII 0 Keyboard 0 Movement Mouse Keybinds 0 Fullscreen 2 Font 18/X11Bold Map View 76x50 Tactical HUD 0 Map Filters NONE Filters NONE Steam 1 RUN: 22e74d27-6d83-4428-84a2-9149d9925ce4